bitfinex/quotes_SOLUSD_20250611
["timestamp","ask_amount","ask_price","bid_price","bid_amount"]
[1749648799318,6.04156597,165.52,165.42,34.79063292]
[1749648799319,34.79063292,165.47,165.42,34.79063292]
[1749648799539,34.79063292,165.45,165.4,34.79063292]
[1749648799735,34.79063292,165.44,165.38,6.0754]
[1749648799934,60.04964886,165.51,165.39,34.79063292]
[1749648800123,34.79063292,165.46,165.41,34.79063292]
[1749648800326,60.04964886,165.51,165.39,0.28432314]
[1749648800543,34.79063292,165.45,165.4,34.79063292]
[1749648800719,34.79063292,165.46,165.4,34.79063292]
[1749648800919,34.79063292,165.46,165.41,34.79063292]
[1749648801121,6.04276347,165.49,165.39,0.28432314]
[1749648801424,34.79063292,165.45,165.4,34.79063292]
[1749648801947,34.79063292,165.46,165.41,34.79063292]
[1749648802132,34.79063292,165.46,165.4,34.79063292]
[1749648802333,34.79063292,165.45,165.39,0.28432314]
[1749648802530,6.04276347,165.49,165.39,0.28432314]
[1749648802736,34.79063292,165.46,165.41,34.79063292]
[1749648802940,34.79063292,165.46,165.39,0.28432314]
[1749648803137,34.79063292,165.43,165.38,6.0754]
[1749648803341,6.04229607,165.5,165.37,36.41503292]
[1749648803342,34.79063292,165.42,165.37,36.41503292]
[1749648804030,26.0,165.46,165.38,34.79063292]
[1749648804340,21.14803625,165.5,165.41,34.79063292]
[1749648804551,34.79063292,165.47,165.41,34.79063292]
[1749648804722,34.79063292,165.47,165.37,1.90872314]
[1749648804916,32.04229607,165.5,165.41,34.79063292]
[1749648805122,34.79063292,165.46,165.37,1.6244]
[1749648805349,36.45672988,165.44,165.39,36.45672988]
[1749648805657,36.45672988,165.42,165.37,1.6244]
[1749648805832,36.45672988,165.42,165.37,38.08112988]
[1749648806030,18.64964886,165.49,165.39,36.45672988]
[1749648806233,36.45672988,165.44,165.39,36.45672988]
[1749648806446,18.64964886,165.49,165.37,1.6244]
[1749648806755,36.45672988,165.43,165.37,38.08112988]
[1749648806947,18.64964886,165.47,165.37,1.6244]
[1749648807123,36.45672988,165.38,165.31,1.6336]
[1749648807323,36.45672988,165.35,165.27,6.3741]
[1749648807529,40.66,165.42,165.25,1.6336]
[1749648807530,36.45672988,165.32,165.25,1.6336]
[1749648807728,36.45672988,165.26,165.21,6.3741]
[1749648808027,18.64964886,165.32,165.18,38.09032988]
[1749648808233,18.64964886,165.32,165.2,36.45672988]
[1749648808533,0.14216157,165.41,165.29,36.45672988]
[1749648808859,36.45672988,165.38,165.33,36.45672988]
[1749648809030,150.04287575,165.45,165.35,36.45672988]
[1749648809229,26.0,165.44,165.36,34.81728163]
[1749648809428,34.81728163,165.41,165.36,34.81728163]
[1749648809650,34.81728163,165.42,165.33,0.14216157]
[1749648809843,6.04302634,165.48,165.33,0.14216157]
[1749648809844,18.64964886,165.47,165.36,34.81728163]
[1749648810026,34.81728163,165.43,165.33,0.14216157]
[1749648810223,34.81728163,165.43,165.33,26.14216157]
[1749648810427,34.81728163,165.42,165.36,34.81728163]
[1749648810652,34.81728163,165.43,165.38,34.81728163]
[1749648810832,34.81728163,165.44,165.33,0.28432314]
[1749648811038,32.04302634,165.48,165.38,34.81728163]
[1749648811275,34.81728163,165.42,165.37,34.81728163]
[1749648811750,34.81728163,165.42,165.36,34.81728163]
[1749648811960,34.81728163,165.41,165.3,26.0]
[1749648812145,34.81728163,165.38,165.33,34.81728163]
[1749648812340,18.64964886,165.44,165.35,34.81728163]
[1749648812551,26.0,165.46,165.37,34.81728163]
[1749648812756,34.81728163,165.38,165.25,6.4862]
[1749648813062,26.0,165.33,165.16,1.6442]
[1749648813268,18.64964886,165.32,165.16,1.6442]
[1749648813653,44.64964886,165.32,165.2,34.81728163]
[1749648813856,26.0,165.32,165.16,1.6442]
[1749648814062,0.14216157,165.3,165.16,1.6442]
[1749648814365,34.81728163,165.24,165.16,1.6442]
[1749648814539,34.81728163,165.22,165.16,1.6442]
[1749648814741,21.16978164,165.33,165.16,27.6442]
[1749648814957,34.81728163,165.28,165.16,27.6442]
[1749648815166,0.14216157,165.4,165.17,26.28432314]
[1749648815356,44.64964886,165.37,165.22,0.28432314]
[1749648815570,44.64964886,165.37,165.21,0.14216157]
[1749648815744,13.34216157,165.36,165.24,34.81728163]
[1749648816070,13.34216157,165.36,165.25,34.81728163]
[1749648816071,18.64964886,165.35,165.25,34.81728163]
[1749648816242,18.64964886,165.35,165.24,34.81728163]
[1749648816442,34.81728163,165.31,165.26,34.81728163]
[1749648816649,21.44453258,165.41,165.3,34.81728163]
[1749648816650,6.0455837,165.41,165.3,34.81728163]
[1749648816942,6.0455837,165.41,165.31,34.81728163]
[1749648817146,18.64964886,165.4,165.26,0.28432314]
[1749648817360,34.81728163,165.36,165.26,0.28432314]
[1749648817563,34.81728163,165.35,165.26,0.14216157]
[1749648817869,34.81728163,165.36,165.31,34.81728163]
[1749648818041,24.69523256,165.41,165.26,0.28432314]
[1749648818241,34.81728163,165.35,165.3,34.81728163]
[1749648818455,34.81728163,165.36,165.31,34.81728163]
[1749648818653,34.81728163,165.34,165.26,0.28432314]
[1749648818938,26.0,165.37,165.3,34.81728163]
[1749648819155,26.0,165.37,165.26,0.28432314]
[1749648819354,6.04556311,165.42,165.32,34.81728163]
[1749648819553,6.04480766,165.44,165.33,34.81728163]
[1749648819767,34.81728163,165.39,165.34,34.81728163]
[1749648820170,34.81728163,165.38,165.33,34.81728163]
[1749648820358,34.81728163,165.38,165.32,34.81728163]
[1749648820555,34.81728163,165.38,165.29,1.93392314]
[1749648820976,34.81728163,165.38,165.33,34.81728163]
[1749648821177,26.0,165.41,165.33,34.81728163]
[1749648821382,6.4652,165.49,165.32,0.28432314]
[1749648821675,6.4652,165.49,165.29,2.07608471]
[1749648821676,51.12151928,165.47,165.31,0.28432314]
[1749648821973,34.81728163,165.38,165.31,0.28432314]
[1749648822153,18.64964886,165.43,165.32,34.81728163]
[1749648822354,26.0,165.44,165.29,1.6496]
[1749648822355,26.0,165.4,165.34,34.81728163]
[1749648822556,34.81728163,165.4,165.35,34.81728163]
[1749648822774,34.81728163,165.42,165.37,34.81728163]
[1749648823174,34.81728163,165.43,165.38,34.81728163]
[1749648823377,11.32,165.48,165.37,34.81728163]
[1749648823378,34.81728163,165.42,165.37,34.81728163]
[1749648823566,34.81728163,165.4,165.35,34.81728163]
[1749648823876,34.81728163,165.41,165.36,34.81728163]
[1749648824078,34.81728163,165.42,165.37,34.81728163]
[1749648824269,26.0,165.46,165.33,0.28432314]
[1749648824471,34.81728163,165.4,165.33,0.28432314]
[1749648824656,34.81728163,165.39,165.34,34.81728163]
[1749648824856,34.81728163,165.42,165.37,34.81728163]
[1749648825054,17.3631008,165.48,165.38,34.81728163]
[1749648825290,34.81728163,165.42,165.33,0.28432314]
[1749648825571,9.18390885,165.5,165.4,34.81728163]
[1749648825778,146.7,165.52,165.45,34.81728163]
[1749648825954,5.462145,165.61,165.48,34.81728163]
[1749648825955,6.04047115,165.55,165.48,34.81728163]
[1749648826164,34.81728163,165.54,165.49,34.81728163]
[1749648826557,6.04018504,165.56,165.48,34.81728163]
[1749648826558,34.81728163,165.53,165.48,34.81728163]
[1749648826960,6.03980435,165.57,165.49,34.81728163]
[1749648827171,9.17893229,165.59,165.51,34.81728163]
[1749648827457,34.81728163,165.56,165.51,34.81728163]
[1749648827688,34.81728163,165.59,165.54,34.81728163]
[1749648827856,6.03573153,165.68,165.58,34.81728163]
[1749648828060,21.26716453,165.69,165.49,18.79181043]
[1749648828061,34.81728163,165.67,165.62,34.81728163]
[1749648828294,9.17300123,165.71,165.56,0.28432314]
[1749648828462,34.81728163,165.63,165.56,0.28432314]
[1749648828789,34.81728163,165.62,165.56,34.81728163]
[1749648828957,45.4,165.69,165.59,34.81728163]
[1749648828958,34.81728163,165.64,165.59,34.81728163]
[1749648829162,45.4,165.69,165.56,0.28432314]
[1749648829464,34.81728163,165.64,165.55,6.1697]
[1749648829791,44.64964886,165.67,165.57,34.81728163]
[1749648829963,44.64964886,165.67,165.58,34.81728163]
[1749648830158,34.81728163,165.63,165.58,34.81728163]
[1749648830359,34.81728163,165.59,165.54,1.6159]
[1749648830586,34.81728163,165.58,165.54,1.6159]
[1749648830761,34.81728163,165.57,165.52,34.81728163]
[1749648830962,34.81728163,165.58,165.52,34.81728163]
[1749648831273,34.81728163,165.58,165.53,34.81728163]
[1749648831465,34.81728163,165.55,165.5,34.81728163]
[1749648831972,34.81728163,165.57,165.52,34.81728163]
[1749648832178,26.0,165.59,165.52,34.81728163]
[1749648832179,34.81728163,165.58,165.52,34.81728163]
[1749648832485,26.0,165.59,165.48,6.1821]
[1749648832486,34.81728163,165.57,165.51,34.81728163]
[1749648832681,26.0,165.59,165.52,34.81728163]
[1749648832880,6.03864734,165.6,165.49,0.28432314]
[1749648833187,34.81728163,165.58,165.52,34.81728163]
[1749648833572,34.81728163,165.57,165.52,34.81728163]
[1749648833777,34.81728163,165.6,165.54,34.81728163]
[1749648834092,34.81728163,165.6,165.55,34.81728163]
[1749648834488,34.81728163,165.57,165.51,34.81728163]
[1749648834668,34.81728163,165.55,165.5,34.81728163]
[1749648834861,44.76,165.59,165.48,6.1821]
[1749648835057,34.81728163,165.56,165.51,34.81728163]
[1749648835259,34.81728163,165.57,165.52,34.81728163]
[1749648835463,34.81728163,165.57,165.51,34.81728163]
[1749648835664,34.81728163,165.57,165.48,6.1821]
[1749648835665,34.81728163,165.57,165.49,0.28432314]
[1749648835889,34.81728163,165.57,165.51,34.81728163]
[1749648836072,44.56,165.59,165.53,34.81728163]
[1749648836386,34.81728163,165.6,165.55,34.81728163]
[1749648836587,34.81728163,165.59,165.53,34.81728163]
[1749648836889,34.81728163,165.58,165.52,34.81728163]
[1749648837264,70.52,165.62,165.49,0.28432314]
[1749648837465,36.39997728,165.59,165.53,36.39997728]
[1749648837877,36.39997728,165.56,165.51,36.39997728]
[1749648838077,36.39997728,165.57,165.49,0.14216157]
[1749648838276,36.39997728,165.56,165.49,0.28432314]
[1749648838477,36.39997728,165.57,165.52,36.39997728]
[1749648839067,36.39997728,165.58,165.53,36.39997728]
[1749648839669,36.39997728,165.56,165.49,0.28432314]
[1749648839871,36.39997728,165.57,165.51,36.39997728]
[1749648840069,36.39997728,165.58,165.49,0.28432314]
[1749648840388,36.39997728,165.57,165.52,36.39997728]
[1749648840694,36.39997728,165.58,165.53,36.39997728]
[1749648841003,36.39997728,165.58,165.52,36.39997728]
[1749648841214,36.39997728,165.53,165.47,1.5383]
[1749648841488,6.04165006,165.52,165.43,36.39997728]
[1749648841704,49.96122752,165.53,165.45,36.39997728]
[1749648841872,36.39997728,165.55,165.49,36.39997728]
[1749648842211,43.86,165.57,165.53,36.39997728]
[1749648842694,36.39997728,165.59,165.48,62.39997728]
[1749648843004,36.39997728,165.57,165.48,0.28432314]
[1749648843311,36.39997728,165.57,165.52,36.39997728]
[1749648843509,152.9369033,165.65,165.56,36.39997728]
[1749648843691,152.9369033,165.65,165.54,6.0395]
[1749648843879,36.39997728,165.64,165.58,36.39997728]
[1749648844079,36.39997728,165.64,165.54,6.0395]
[1749648844080,36.39997728,165.63,165.54,6.0395]
[1749648844415,43.8,165.62,165.52,38.04247728]
[1749648844714,43.8,165.62,165.55,36.39997728]
[1749648844879,0.2,165.62,165.53,36.39997728]
[1749648845081,0.2,165.62,165.52,1.6425]
[1749648845309,36.39997728,165.56,165.51,36.39997728]
[1749648845483,146.7,165.6,165.52,36.39997728]
[1749648845685,146.7,165.6,165.53,36.39997728]
[1749648845906,36.39997728,165.55,165.48,0.14216157]
[1749648846216,36.39997728,165.55,165.5,36.39997728]
[1749648846515,43.44,165.58,165.46,1.78286157]
[1749648846516,18.64964886,165.57,165.46,1.6407]
[1749648846717,36.39997728,165.52,165.47,36.39997728]
[1749648846881,43.4,165.55,165.46,38.04067728]
[1749648847086,36.39997728,165.51,165.46,38.04067728]
[1749648847388,43.4,165.55,165.46,38.04067728]
[1749648847602,36.39997728,165.49,165.43,36.39997728]
[1749648847778,43.4,165.55,165.48,36.39997728]
[1749648848104,36.59997728,165.56,165.51,36.39997728]
[1749648848308,36.39997728,165.55,165.5,36.39997728]
[1749648848515,36.59997728,165.56,165.5,36.39997728]
[1749648848856,6.24020852,165.56,165.43,0.28432314]
[1749648849115,36.39997728,165.48,165.4,1.537]
[1749648849290,36.39997728,165.47,165.41,36.39997728]
[1749648849485,18.64964886,165.54,165.43,36.39997728]
[1749648849685,36.39997728,165.53,165.47,36.39997728]
[1749648849911,0.2,165.56,165.52,36.39997728]
[1749648850123,0.2,165.56,165.51,36.39997728]
[1749648850124,146.7,165.62,165.54,36.39997728]
[1749648850308,146.7,165.62,165.55,36.39997728]
[1749648850309,36.39997728,165.6,165.55,36.39997728]
[1749648850506,36.39997728,165.6,165.54,36.39997728]
[1749648850710,36.39997728,165.6,165.5,0.28432314]
[1749648850913,146.7,165.62,165.46,0.28432314]
[1749648850914,36.39997728,165.55,165.46,0.28432314]
[1749648851121,36.39997728,165.57,165.52,36.39997728]
[1749648851427,36.39997728,165.55,165.46,0.28432314]
[1749648851596,18.79181043,165.61,165.46,0.28432314]
[1749648851597,18.79181043,165.61,165.5,36.39997728]
[1749648851796,36.39997728,165.57,165.51,36.39997728]
[1749648852129,36.39997728,165.59,165.53,36.39997728]
[1749648852308,36.39997728,165.61,165.55,36.39997728]
[1749648852502,36.39997728,165.59,165.53,37.97397728]
[1749648852703,146.7,165.62,165.53,37.97397728]
[1749648852704,36.39997728,165.56,165.53,1.574]
[1749648852917,36.39997728,165.55,165.5,26.0]
[1749648853108,36.39997728,165.57,165.52,36.39997728]
[1749648853425,36.39997728,165.54,165.49,36.39997728]
[1749648853605,36.39997728,165.55,165.5,36.39997728]
[1749648853907,189.44,165.62,165.53,36.39997728]
[1749648854108,36.39997728,165.59,165.54,36.39997728]
[1749648854319,36.39997728,165.59,165.48,37.94007728]
[1749648854320,36.39997728,165.55,165.5,36.39997728]
[1749648854502,36.39997728,165.57,165.52,36.39997728]
[1749648854700,36.39997728,165.58,165.53,36.39997728]
[1749648855103,36.39997728,165.6,165.51,26.0]
[1749648855315,146.7,165.63,165.53,36.39997728]
[1749648855516,36.39997728,165.58,165.53,36.39997728]
[1749648855720,36.39997728,165.56,165.48,1.82442314]
[1749648855897,0.14216157,165.61,165.49,36.39997728]
[1749648856102,36.39997728,165.53,165.48,37.94007728]
[1749648856332,36.39997728,165.56,165.51,36.39997728]
[1749648856539,62.39997728,165.58,165.53,36.39997728]
[1749648856835,36.39997728,165.59,165.54,36.39997728]
[1749648857002,183.29997728,165.6,165.55,36.39997728]
[1749648857205,36.39997728,165.61,165.56,36.39997728]
[1749648857407,36.39997728,165.63,165.57,36.39997728]
[1749648857636,36.39997728,165.63,165.58,36.39997728]
[1749648858144,146.9,165.66,165.58,36.39997728]
[1749648858326,36.39997728,165.63,165.58,36.39997728]
[1749648858527,146.9,165.66,165.6,36.39997728]
[1749648858734,36.39997728,165.65,165.6,36.39997728]
[1749648859234,146.9,165.66,165.53,26.42648471]
[1749648859235,183.29997728,165.66,165.61,36.39997728]
[1749648859416,146.9,165.66,165.61,36.39997728]
[1749648859617,183.29997728,165.66,165.61,36.39997728]
[1749648859826,146.9,165.66,165.6,36.39997728]
[1749648860130,36.39997728,165.65,165.6,36.39997728]
[1749648860332,146.9,165.66,165.53,26.42648471]
[1749648860521,36.39997728,165.6,165.55,36.39997728]
[1749648860712,36.39997728,165.61,165.56,36.39997728]
[1749648860909,146.9,165.66,165.6,36.39997728]
[1749648861142,183.29997728,165.66,165.61,36.39997728]
[1749648861369,146.9,165.66,165.61,36.39997728]
[1749648861515,36.39997728,165.64,165.59,37.98647728]
[1749648861924,146.9,165.66,165.59,37.98647728]
[1749648862126,36.39997728,165.65,165.6,36.39997728]
[1749648862849,146.9,165.66,165.63,36.39997728]
[1749648863019,146.9,165.66,165.59,1.5865]
[1749648863020,6.0873,165.73,165.6,0.28432314]
[1749648863219,6.0873,165.73,165.59,1.5865]
[1749648863220,36.39997728,165.64,165.59,1.5865]
[1749648863433,36.39997728,165.6,165.53,7.6659]
[1749648863619,36.39997728,165.57,165.52,36.39997728]
[1749648863820,36.39997728,165.56,165.48,7.6659]
[1749648864132,41.52,165.59,165.5,36.39997728]
[1749648864335,183.29997728,165.6,165.55,36.39997728]
[1749648864836,183.29997728,165.6,165.48,44.06587728]
[1749648864837,183.29997728,165.6,165.51,26.0]
[1749648865039,183.29997728,165.6,165.55,36.39997728]
[1749648865231,36.39997728,165.58,165.51,26.0]
[1749648865427,146.9,165.6,165.51,36.39997728]
[1749648865721,36.39997728,165.58,165.52,36.39997728]
[1749648865923,36.39997728,165.57,165.52,36.39997728]
[1749648866214,146.9,165.6,165.52,36.39997728]
[1749648866215,41.3,165.59,165.52,36.39997728]
[1749648866445,36.39997728,165.58,165.53,36.39997728]
[1749648866641,36.39997728,165.58,165.52,36.39997728]
[1749648866944,146.7,165.66,165.56,36.39997728]
[1749648867141,36.39997728,165.64,165.59,36.39997728]
[1749648867820,146.7,165.66,165.52,0.28432314]
[1749648867821,146.7,165.66,165.52,18.933972]
[1749648868157,146.7,165.66,165.61,36.39997728]
[1749648868318,0.2,165.68,165.64,36.39997728]
[1749648868519,36.39997728,165.69,165.59,7.7984]
[1749648868719,36.39997728,165.65,165.6,36.39997728]
[1749648868920,41.04,165.7,165.59,7.7984]
[1749648868921,187.94,165.7,165.59,7.7984]
[1749648869233,36.39997728,165.68,165.63,36.39997728]
[1749648869443,36.39997728,165.68,165.62,36.39997728]
[1749648869643,36.39997728,165.67,165.62,36.39997728]
[1749648870153,187.94,165.7,165.59,7.7984]
[1749648870154,36.39997728,165.68,165.63,36.39997728]
[1749648870956,146.9,165.7,165.63,36.39997728]
[1749648871126,146.9,165.7,165.65,36.39997728]
[1749648871127,36.39997728,165.7,165.65,36.39997728]
[1749648871444,40.8,165.72,165.65,36.39997728]
[1749648871642,40.8,165.72,165.6,0.28432314]
[1749648871643,36.39997728,165.7,165.64,36.39997728]
[1749648871843,36.39997728,165.71,165.66,36.39997728]
[1749648872143,36.39997728,165.74,165.69,36.39997728]
[1749648872345,36.39997728,165.74,165.63,26.28432314]
[1749648872346,36.39997728,165.75,165.64,0.28432314]
[1749648872535,36.39997728,165.74,165.68,36.39997728]
[1749648872729,36.39997728,165.73,165.68,36.39997728]
[1749648873036,146.7,165.76,165.69,36.39997728]
[1749648873238,146.7,165.76,165.64,26.28432314]
[1749648873443,0.2,165.78,165.71,36.39997728]
[1749648873623,36.39997728,165.76,165.71,36.39997728]
[1749648873823,36.39997728,165.76,165.65,26.0]
[1749648874024,6.3644,165.82,165.7,26.0]
[1749648874226,36.39997728,165.8,165.75,36.39997728]
[1749648874445,36.39997728,165.79,165.74,36.39997728]
[1749648876051,36.39997728,165.83,165.78,1.5874]
[1749648876230,36.39997728,165.83,165.78,37.98737728]
[1749648876436,40.56,165.86,165.78,37.98737728]
[1749648876437,59.20964886,165.88,165.78,1.5874]
[1749648876645,59.20964886,165.88,165.73,26.0]
[1749648876839,59.20964886,165.88,165.77,36.39997728]
[1749648876840,36.39997728,165.82,165.77,36.39997728]
[1749648877159,36.39997728,165.79,165.74,36.39997728]
[1749648877538,36.39997728,165.8,165.75,36.39997728]
[1749648877752,40.52,165.8,165.72,1.6507]
[1749648877951,36.39997728,165.77,165.72,1.6507]
[1749648878153,36.39997728,165.78,165.72,38.05067728]
[1749648878458,36.39997728,165.77,165.72,38.05067728]
[1749648878828,36.39997728,165.79,165.72,1.6507]
[1749648879052,40.44,165.82,165.74,36.39997728]
[1749648879455,36.39997728,165.8,165.75,36.39997728]
[1749648879759,36.39997728,165.8,165.74,36.39997728]
[1749648879935,40.44,165.82,165.72,1.6507]
[1749648880140,18.64964886,165.82,165.73,36.39997728]
[1749648880346,36.39997728,165.77,165.72,1.6507]
[1749648880751,6.03032213,165.83,165.72,1.6507]
[1749648880752,18.64964886,165.82,165.72,1.6507]
[1749648881168,18.64964886,165.8,165.72,1.6507]
[1749648881579,36.39997728,165.76,165.72,1.6507]
[1749648881750,36.39997728,165.74,165.68,36.39997728]
[1749648882068,18.64964886,165.78,165.67,26.0]
[1749648882242,40.18,165.81,165.65,1.5464]
[1749648882444,36.39997728,165.74,165.67,26.0]
[1749648882678,36.39997728,165.74,165.69,36.39997728]
[1749648883168,36.39997728,165.73,165.68,36.39997728]
[1749648883367,18.64964886,165.8,165.68,36.39997728]
[1749648883666,18.64964886,165.8,165.69,36.39997728]
[1749648883854,6.37026157,165.82,165.73,36.39997728]
[1749648883855,6.2281,165.82,165.73,36.39997728]
[1749648884065,36.39997728,165.78,165.73,36.39997728]
[1749648884251,36.39997728,165.79,165.74,36.39997728]
[1749648884453,36.39997728,165.77,165.67,26.28432314]
[1749648884765,36.39997728,165.74,165.69,36.39997728]
[1749648884970,18.64964886,165.8,165.7,36.39997728]
[1749648885166,18.64964886,165.8,165.71,36.39997728]
[1749648885167,36.39997728,165.77,165.71,36.39997728]
[1749648885350,18.64964886,165.8,165.71,36.39997728]
[1749648885548,39.84,165.81,165.72,36.39997728]
[1749648885770,36.39997728,165.78,165.73,36.39997728]
[1749648886071,36.39997728,165.85,165.75,26.0]
[1749648886251,36.39997728,165.84,165.79,36.39997728]
[1749648886450,7.7659,165.92,165.8,36.39997728]
[1749648886654,36.39997728,165.85,165.8,36.39997728]
[1749648886856,6.02736423,165.91,165.77,1.6155]
[1749648887059,39.62,165.9,165.81,36.39997728]
[1749648887259,36.39997728,165.86,165.81,36.39997728]
[1749648887648,39.62,165.9,165.81,36.39997728]
[1749648887649,12.27640271,165.92,165.81,36.39997728]
[1749648887847,12.27640271,165.92,165.77,1.6155]
[1749648887848,18.64964886,165.91,165.82,36.39997728]
[1749648888158,3.13420016,165.94,165.83,36.39997728]
[1749648888485,36.39997728,165.88,165.83,36.39997728]
[1749648888657,3.13420016,165.94,165.84,36.39997728]
[1749648888851,48.60064934,165.94,165.79,26.0]
[1749648889054,36.39997728,165.85,165.8,36.39997728]
[1749648889247,36.39997728,165.86,165.81,36.39997728]
[1749648889447,18.64964886,165.93,165.79,26.0]
[1749648889665,36.39997728,165.87,165.82,36.39997728]
[1749648890268,36.39997728,165.87,165.79,26.0]
[1749648890269,18.64964886,165.91,165.8,36.39997728]
[1749648890471,36.39997728,165.86,165.81,36.39997728]
[1749648890669,18.64964886,165.91,165.81,36.39997728]
[1749648890871,36.39997728,165.86,165.8,36.39997728]
[1749648891060,36.39997728,165.87,165.81,36.39997728]
[1749648892077,36.39997728,165.89,165.84,36.39997728]
[1749648892579,9.16050191,165.94,165.84,36.39997728]
[1749648892580,18.64964886,165.93,165.84,36.39997728]
[1749648892870,36.39997728,165.9,165.79,26.0]
[1749648893076,3.13420016,165.94,165.86,36.39997728]
[1749648893370,3.13420016,165.94,165.81,0.28432314]
[1749648893371,36.39997728,165.87,165.81,36.39997728]
[1749648893575,36.39997728,165.85,165.8,36.39997728]
[1749648893787,0.2,165.86,165.81,36.39997728]
[1749648893952,204.50964886,165.93,165.82,36.39997728]
[1749648894158,36.39997728,165.87,165.82,36.39997728]
[1749648894878,36.39997728,165.85,165.79,26.0]
[1749648895054,36.39997728,165.84,165.77,1.6155]
[1749648895257,36.39997728,165.84,165.79,36.39997728]
[1749648895974,36.39997728,165.85,165.8,36.39997728]
[1749648896486,36.39997728,165.84,165.77,1.6155]
[1749648896656,18.64964886,165.92,165.8,36.39997728]
[1749648896855,36.39997728,165.85,165.8,36.39997728]
[1749648897055,0.2,165.91,165.8,36.39997728]
[1749648897254,0.2,165.91,165.79,26.0]
[1749648897462,36.39997728,165.85,165.79,26.0]
[1749648897693,36.39997728,165.84,165.79,62.39997728]
[1749648897862,36.39997728,165.83,165.78,36.39997728]
[1749648898060,36.39997728,165.84,165.79,36.39997728]
[1749648898462,36.39997728,165.83,165.78,36.39997728]
[1749648898762,18.64964886,165.89,165.79,26.0]
[1749648898971,18.64964886,165.89,165.78,26.0]
[1749648898972,36.39997728,165.83,165.78,62.39997728]
[1749648899393,18.64964886,165.89,165.78,62.39997728]
[1749648899589,36.39997728,165.83,165.78,62.39997728]
[1749648899899,36.39997728,165.83,165.77,1.6155]
[1749648899900,36.39997728,165.8,165.77,1.6155]
[1749648900056,36.39997728,165.78,165.72,7.6447]
[1749648900359,36.39997728,165.77,165.72,7.6447]
[1749648900561,36.39997728,165.75,165.72,1.5472]
[1749648900775,36.39997728,165.73,165.67,7.989]
[1749648900977,36.39997728,165.72,165.68,36.39997728]
[1749648901189,56.90964886,165.81,165.71,62.39997728]
[1749648901385,36.39997728,165.84,165.74,26.0]
[1749648901693,36.39997728,165.8,165.75,36.39997728]
[1749648901854,36.39997728,165.79,165.68,0.14216157]
[1749648902059,36.39997728,165.75,165.7,28.89997728]
[1749648902280,18.64964886,165.83,165.67,7.989]
[1749648902482,36.39997728,165.8,165.75,36.39997728]
[1749648902659,36.39997728,165.76,165.67,7.989]
[1749648902862,36.39997728,165.72,165.67,44.38897728]
[1749648903062,36.39997728,165.74,165.69,36.39997728]
[1749648903288,38.12,165.81,165.67,7.989]
[1749648903289,36.39997728,165.75,165.7,62.39997728]
[1749648903484,36.39997728,165.75,165.7,36.39997728]
[1749648903783,1.5166,165.88,165.75,26.0]
[1749648904084,36.39997728,165.82,165.71,26.0]
[1749648904388,1.5107,165.93,165.79,26.0]
[1749648904389,36.39997728,165.84,165.79,26.0]
[1749648904600,36.39997728,165.84,165.79,62.39997728]
[1749648904957,6.261,165.92,165.8,36.39997728]
[1749648905160,6.261,165.92,165.78,1.6354]
[1749648905161,36.39997728,165.86,165.81,26.0]
[1749648905585,44.201,165.92,165.81,26.0]
[1749648905586,36.39997728,165.85,165.81,26.0]
[1749648905890,36.39997728,165.85,165.78,7.8079]
[1749648905891,36.39997728,165.85,165.8,36.39997728]
[1749648906081,36.39997728,165.86,165.8,36.39997728]
[1749648906269,36.39997728,165.87,165.82,62.39997728]
[1749648906474,36.39997728,165.87,165.83,26.0]
[1749648907185,36.39997728,165.88,165.83,62.39997728]
[1749648907488,36.39997728,165.9,165.84,0.14216157]
[1749648907691,36.39997728,165.9,165.86,26.0]
[1749648907891,3.13296546,166.0,165.92,26.0]
[1749648908073,36.39997728,165.99,165.94,36.39997728]
[1749648908271,43.9646,166.02,165.94,36.39997728]
[1749648908466,36.39997728,165.95,165.89,1.659]
[1749648908691,36.39997728,165.95,165.85,0.14216157]
[1749648908692,18.64964886,165.97,165.88,36.39997728]
[1749648908989,18.64964886,165.97,165.87,26.0]
[1749648908990,36.39997728,165.98,165.93,36.39997728]
[1749648909197,146.9,166.01,165.94,36.39997728]
[1749648909700,36.39997728,165.98,165.9,26.0]
[1749648909875,146.9,166.01,165.87,26.14216157]
[1749648910075,36.39997728,165.94,165.89,36.39997728]
[1749648910272,24.87374524,166.0,165.84,1.596]
[1749648910273,36.39997728,165.9,165.84,1.596]
[1749648910493,36.39997728,165.89,165.84,37.99597728]
[1749648910689,36.39997728,165.9,165.85,36.39997728]
[1749648910894,36.39997728,165.9,165.84,1.596]
[1749648911095,36.39997728,165.9,165.69,29.70792596]
[1749648911096,36.39997728,165.86,165.81,36.39997728]